[Event "Titled Tuesday Blitz October 31 Late 2023"]
[White "Mushini Ajay"]
[Black "Osmonbekov, Talaibek"]
[WhiteFideId "35066188"]
[BlackFideId "2017253"]
[WhiteElo "2445"]
[BlackElo "2231"]
[Result "0-1"]
[Round "2"]
[TimeControl "180+1"]
[Date "2023.10.31"]
[WhiteClock "0:00:00"]
[BlackClock "0:00:07"]
[Board "151"]

1. e4 {[%clk 0:03:00]}  c5 {[%clk 0:02:59]} 2. Nc3 {[%clk 0:02:53]}  g6 {[%clk 0:02:53]} 3. f4 {[%clk 0:02:53]}  Bg7 {[%clk 0:02:52]} 4. Nf3 {[%clk 0:02:53]}  Nc6 {[%clk 0:02:52]} 5. Bb5 {[%clk 0:02:49]}  Nd4 {[%clk 0:02:52]} 6. Nxd4 {[%clk 0:02:49]}  cxd4 {[%clk 0:02:51]} 7. Ne2 {[%clk 0:02:48]}  Qb6 {[%clk 0:02:46]} 8. Bc4 {[%clk 0:02:46]}  d3 {[%clk 0:02:39]} 9. Bxd3 {[%clk 0:02:44]}  d6 {[%clk 0:02:32]} 10. Ng3 {[%clk 0:02:41]}  Nf6 {[%clk 0:02:29]} 11. Be2 {[%clk 0:02:36]}  h5 {[%clk 0:02:25]} 12. e5 {[%clk 0:02:21]}  dxe5 {[%clk 0:02:21]} 13. fxe5 {[%clk 0:02:22]}  Ng4 {[%clk 0:02:21]} 14. d4 {[%clk 0:02:21]}  Bxe5 {[%clk 0:02:12]} 15. c3 {[%clk 0:02:03]}  Bd6 {[%clk 0:01:45]} 16. Qd3 {[%clk 0:01:41]}  Qc7 {[%clk 0:01:19]} 17. Bg5 {[%clk 0:01:25]}  Bf4 {[%clk 0:00:44]} 18. Bxf4 {[%clk 0:01:17]}  Qxf4 {[%clk 0:00:45]} 19. Rf1 {[%clk 0:01:16]}  Qe3 {[%clk 0:00:45]} 20. Qb5+ {[%clk 0:01:05]}  Bd7 {[%clk 0:00:43]} 21. Qxb7 {[%clk 0:01:05]}  Rd8 {[%clk 0:00:37]} 22. Rf3 {[%clk 0:01:00]}  Qg1+ {[%clk 0:00:33]} 23. Nf1 {[%clk 0:00:58]}  Nxh2 {[%clk 0:00:27]} 24. O-O-O {[%clk 0:00:38]}  Nxf3 {[%clk 0:00:26]} 25. Bxf3 {[%clk 0:00:34]}  Qf2 {[%clk 0:00:24]} 26. Nd2 {[%clk 0:00:33]}  O-O {[%clk 0:00:22]} 27. Qe4 {[%clk 0:00:26]}  Bf5 {[%clk 0:00:22]} 28. Qe5 {[%clk 0:00:21]}  Rd7 {[%clk 0:00:18]} 29. Rf1 {[%clk 0:00:20]}  Qh4 {[%clk 0:00:17]} 30. Be4 {[%clk 0:00:19]}  Bxe4 {[%clk 0:00:14]} 31. Nxe4 {[%clk 0:00:20]}  Rb8 {[%clk 0:00:13]} 32. Ng5 {[%clk 0:00:19]}  Rf8 {[%clk 0:00:11]} 33. Rf3 {[%clk 0:00:14]}  Qh1+ {[%clk 0:00:10]} 34. Kc2 {[%clk 0:00:13]}  Qxg2+ {[%clk 0:00:10]} 35. Kb3 {[%clk 0:00:13]}  Rb7+ {[%clk 0:00:09]} 36. Kc4 {[%clk 0:00:13]}  Qxb2 {[%clk 0:00:09]} 37. Nxf7 {[%clk 0:00:11]}  Qxa2+ {[%clk 0:00:09]} 38. Kd3 {[%clk 0:00:11]}  Rxf7 {[%clk 0:00:10]} 39. Rg3 {[%clk 0:00:07]}  Qb1+ {[%clk 0:00:10]} 40. Ke3 {[%clk 0:00:07]}  Rb3 {[%clk 0:00:09]} 41. d5 {[%clk 0:00:05]}  Qc2 {[%clk 0:00:09]} 42. Kd4 {[%clk 0:00:00]}  Qf5 {[%clk 0:00:07]} 0-1


[Site "https://www.chess.com"]

[Event "Titled Tuesday Blitz October 31 Late 2023"]
[White "Prieto Aranguren, Alain"]
[Black "Quirke, Jeffrey"]
[WhiteFideId "2268906"]
[BlackFideId "2013029"]
[WhiteElo "2436"]
[BlackElo "2221"]
[Result "1-0"]
[Round "2"]
[TimeControl "180+1"]
[Date "2023.10.31"]
[WhiteClock "0:00:49"]
[BlackClock "0:00:01"]
[Board "154"]

1. e4 {[%clk 0:03:00]}  e6 {[%clk 0:02:59]} 2. d4 {[%clk 0:02:58]}  d5 {[%clk 0:02:59]} 3. Nc3 {[%clk 0:02:59]}  Nf6 {[%clk 0:02:58]} 4. e5 {[%clk 0:02:58]}  Nfd7 {[%clk 0:02:58]} 5. f4 {[%clk 0:02:59]}  c5 {[%clk 0:02:58]} 6. Nf3 {[%clk 0:03:00]}  Nc6 {[%clk 0:02:59]} 7. Be3 {[%clk 0:03:00]}  a6 {[%clk 0:02:59]} 8. Qd2 {[%clk 0:03:00]}  b5 {[%clk 0:02:59]} 9. Be2 {[%clk 0:02:59]}  Qa5 {[%clk 0:02:55]} 10. O-O {[%clk 0:02:57]}  b4 {[%clk 0:02:42]} 11. Nd1 {[%clk 0:02:56]}  Qb6 {[%clk 0:02:37]} 12. c3 {[%clk 0:02:40]}  a5 {[%clk 0:02:36]} 13. f5 {[%clk 0:02:34]}  exf5 {[%clk 0:02:25]} 14. Ng5 {[%clk 0:02:30]}  Nd8 {[%clk 0:01:52]} 15. Rxf5 {[%clk 0:02:24]}  Be7 {[%clk 0:01:52]} 16. Nxf7 {[%clk 0:02:17]}  Nxf7 {[%clk 0:01:51]} 17. e6 {[%clk 0:02:17]}  Qxe6 {[%clk 0:01:48]} 18. Bg4 {[%clk 0:02:17]}  Nf6 {[%clk 0:01:22]} 19. Bh3 {[%clk 0:02:07]}  Qe4 {[%clk 0:01:11]} 20. Nf2 {[%clk 0:02:01]}  Bxf5 {[%clk 0:01:11]} 21. Nxe4 {[%clk 0:02:01]}  Bxe4 {[%clk 0:01:12]} 22. dxc5 {[%clk 0:01:54]}  O-O {[%clk 0:01:11]} 23. Bd4 {[%clk 0:01:53]}  bxc3 {[%clk 0:01:03]} 24. Qxc3 {[%clk 0:01:52]}  Ng5 {[%clk 0:00:42]} 25. a3 {[%clk 0:01:43]}  Nxh3+ {[%clk 0:00:41]} 26. gxh3 {[%clk 0:01:43]}  Rfc8 {[%clk 0:00:38]} 27. b4 {[%clk 0:01:42]}  axb4 {[%clk 0:00:38]} 28. axb4 {[%clk 0:01:42]}  Rxa1+ {[%clk 0:00:37]} 29. Qxa1 {[%clk 0:01:42]}  Nh5 {[%clk 0:00:33]} 30. Qa7 {[%clk 0:01:40]}  Bg5 {[%clk 0:00:29]} 31. Qd7 {[%clk 0:01:36]}  Rf8 {[%clk 0:00:27]} 32. Qg4 {[%clk 0:01:30]}  Nf4 {[%clk 0:00:15]} 33. h4 {[%clk 0:01:24]}  Bh6 {[%clk 0:00:16]} 34. c6 {[%clk 0:01:22]}  Bf5 {[%clk 0:00:11]} 35. Qd1 {[%clk 0:01:02]}  Nh3+ {[%clk 0:00:11]} 36. Kg2 {[%clk 0:00:59]}  Nf4+ {[%clk 0:00:07]} 37. Kg3 {[%clk 0:00:59]}  Nh5+ {[%clk 0:00:06]} 38. Qxh5 {[%clk 0:00:57]}  Be4 {[%clk 0:00:02]} 39. Qg4 {[%clk 0:00:49]}  Bf4+ {[%clk 0:00:03]} 40. Qxf4 {[%clk 0:00:49]}  Rxf4 {[%clk 0:00:01]} 41. Kxf4 {[%clk 0:00:49]} 1-0


[Site "https://www.chess.com"]

[Event "Titled Tuesday Blitz October 31 Late 2023"]
[White "Uddin, Mubassar"]
[Black "Devagharan, Devina"]
[WhiteFideId "2093944"]
[BlackFideId "2061600"]
[WhiteElo "2220"]
[BlackElo "2435"]
[Result "1-0"]
[Round "2"]
[TimeControl "180+1"]
[Date "2023.10.31"]
[WhiteClock "0:00:48"]
[BlackClock "0:00:13"]
[Board "155"]

1. d4 {[%clk 0:03:00]}  d5 {[%clk 0:02:59]} 2. c4 {[%clk 0:03:00]}  e6 {[%clk 0:03:00]} 3. Nc3 {[%clk 0:03:00]}  Be7 {[%clk 0:03:00]} 4. cxd5 {[%clk 0:02:59]}  exd5 {[%clk 0:03:01]} 5. Bf4 {[%clk 0:02:59]}  c6 {[%clk 0:03:02]} 6. Qc2 {[%clk 0:02:57]}  Nf6 {[%clk 0:03:02]} 7. e3 {[%clk 0:02:57]}  O-O {[%clk 0:03:02]} 8. Bd3 {[%clk 0:02:57]}  Nbd7 {[%clk 0:03:02]} 9. Nge2 {[%clk 0:02:57]}  Re8 {[%clk 0:03:03]} 10. O-O {[%clk 0:02:55]}  Nf8 {[%clk 0:03:03]} 11. Rab1 {[%clk 0:02:48]}  a5 {[%clk 0:02:58]} 12. Na4 {[%clk 0:02:44]}  Bd6 {[%clk 0:02:38]} 13. Bxd6 {[%clk 0:02:32]}  Qxd6 {[%clk 0:02:35]} 14. Ng3 {[%clk 0:02:32]}  Ng6 {[%clk 0:01:37]} 15. Rbc1 {[%clk 0:02:16]}  Bd7 {[%clk 0:01:32]} 16. Nc5 {[%clk 0:02:15]}  Qc7 {[%clk 0:01:06]} 17. Qb3 {[%clk 0:02:02]}  Rab8 {[%clk 0:01:00]} 18. Bf5 {[%clk 0:01:35]}  Bxf5 {[%clk 0:00:50]} 19. Nxf5 {[%clk 0:01:36]}  Ne7 {[%clk 0:00:47]} 20. Ng3 {[%clk 0:01:28]}  Nc8 {[%clk 0:00:42]} 21. Nd3 {[%clk 0:01:24]}  Nd6 {[%clk 0:00:40]} 22. Ne5 {[%clk 0:01:23]}  Qe7 {[%clk 0:00:38]} 23. Qb6 {[%clk 0:01:18]}  Nd7 {[%clk 0:00:32]} 24. Nxd7 {[%clk 0:01:13]}  Qxd7 {[%clk 0:00:33]} 25. Qxa5 {[%clk 0:01:13]}  Ra8 {[%clk 0:00:34]} 26. Qb4 {[%clk 0:01:03]}  Rxa2 {[%clk 0:00:34]} 27. Rfe1 {[%clk 0:00:59]}  f5 {[%clk 0:00:31]} 28. f3 {[%clk 0:00:58]}  g6 {[%clk 0:00:31]} 29. Qb3 {[%clk 0:00:56]}  Raa8 {[%clk 0:00:23]} 30. e4 {[%clk 0:00:56]}  fxe4 {[%clk 0:00:22]} 31. fxe4 {[%clk 0:00:56]}  Nf7 {[%clk 0:00:18]} 32. e5 {[%clk 0:00:52]}  Ng5 {[%clk 0:00:17]} 33. Qe3 {[%clk 0:00:52]}  Ne6 {[%clk 0:00:17]} 34. Rf1 {[%clk 0:00:50]}  Rf8 {[%clk 0:00:18]} 35. Rf6 {[%clk 0:00:50]}  Rxf6 {[%clk 0:00:16]} 36. exf6 {[%clk 0:00:51]}  Rf8 {[%clk 0:00:16]} 37. Rf1 {[%clk 0:00:49]}  Qd8 {[%clk 0:00:13]} 38. Qxe6+ {[%clk 0:00:48]} 1-0


[Site "https://www.chess.com"]

[Event "Titled Tuesday Blitz October 31 Late 2023"]
[White "Miszler, Levente"]
[Black "Modric, Nesa"]
[WhiteFideId "763276"]
[BlackFideId "922579"]
[WhiteElo "2434"]
[BlackElo "2218"]
[Result "1-0"]
[Round "2"]
[TimeControl "180+1"]
[Date "2023.10.31"]
[WhiteClock "0:01:48"]
[BlackClock "0:00:02"]
[Board "156"]

1. Nf3 {[%clk 0:02:54]}  d5 {[%clk 0:02:59]} 2. d4 {[%clk 0:02:54]}  Nf6 {[%clk 0:02:59]} 3. Bf4 {[%clk 0:02:53]}  c5 {[%clk 0:02:58]} 4. e3 {[%clk 0:02:53]}  Nc6 {[%clk 0:02:57]} 5. Nbd2 {[%clk 0:02:50]}  cxd4 {[%clk 0:02:56]} 6. exd4 {[%clk 0:02:50]}  Bf5 {[%clk 0:02:56]} 7. c3 {[%clk 0:02:49]}  a6 {[%clk 0:02:47]} 8. Ne5 {[%clk 0:02:46]}  Rc8 {[%clk 0:02:34]} 9. Ndf3 {[%clk 0:02:41]}  e6 {[%clk 0:02:30]} 10. Bd3 {[%clk 0:02:41]}  Bxd3 {[%clk 0:02:29]} 11. Qxd3 {[%clk 0:02:42]}  Be7 {[%clk 0:02:19]} 12. O-O {[%clk 0:02:41]}  O-O {[%clk 0:02:17]} 13. Rfe1 {[%clk 0:02:41]}  Nxe5 {[%clk 0:02:13]} 14. Nxe5 {[%clk 0:02:39]}  Nd7 {[%clk 0:01:56]} 15. Re3 {[%clk 0:02:36]}  Nxe5 {[%clk 0:01:56]} 16. Bxe5 {[%clk 0:02:37]}  Bf6 {[%clk 0:01:52]} 17. Rae1 {[%clk 0:02:32]}  Bxe5 {[%clk 0:01:51]} 18. Rxe5 {[%clk 0:02:33]}  b5 {[%clk 0:01:36]} 19. f4 {[%clk 0:02:32]}  Qd7 {[%clk 0:01:22]} 20. f5 {[%clk 0:02:31]}  exf5 {[%clk 0:01:21]} 21. Qxf5 {[%clk 0:02:25]}  Qxf5 {[%clk 0:00:50]} 22. Rxf5 {[%clk 0:02:26]}  b4 {[%clk 0:00:50]} 23. Re3 {[%clk 0:02:15]}  bxc3 {[%clk 0:00:49]} 24. bxc3 {[%clk 0:02:16]}  Rfd8 {[%clk 0:00:45]} 25. Re7 {[%clk 0:02:16]}  Rf8 {[%clk 0:00:30]} 26. Rxd5 {[%clk 0:02:15]}  Rxc3 {[%clk 0:00:29]} 27. Ra5 {[%clk 0:02:12]}  Rd3 {[%clk 0:00:19]} 28. Rd7 {[%clk 0:02:13]}  Rb8 {[%clk 0:00:17]} 29. Rxa6 {[%clk 0:02:09]}  Rd2 {[%clk 0:00:13]} 30. h3 {[%clk 0:02:08]}  h6 {[%clk 0:00:09]} 31. Raa7 {[%clk 0:02:00]}  Rbb2 {[%clk 0:00:08]} 32. Rxf7 {[%clk 0:02:00]}  Rxg2+ {[%clk 0:00:08]} 33. Kf1 {[%clk 0:02:01]}  Rh2 {[%clk 0:00:04]} 34. Rxg7+ {[%clk 0:02:00]}  Kh8 {[%clk 0:00:04]} 35. Kg1 {[%clk 0:01:58]}  Rhc2 {[%clk 0:00:02]} 36. Rgf7 {[%clk 0:01:48]}  Rxa2 {[%clk 0:00:02]} 37. Rf8# {[%clk 0:01:48]} 1-0


[Site "https://www.chess.com"]

[Event "Titled Tuesday Blitz October 31 Late 2023"]
[White "whiteglovethief"]
[Black "Alfaro, William"]
[BlackFideId "6100457"]
[WhiteElo "2431"]
[BlackElo "2186"]
[Result "1-0"]
[Round "2"]
[TimeControl "180+1"]
[Date "2023.10.31"]
[WhiteClock "0:00:53"]
[BlackClock "0:00:01"]
[Board "159"]

1. d4 {[%clk 0:03:00]}  Nf6 {[%clk 0:02:59]} 2. Bg5 {[%clk 0:02:59]}  g6 {[%clk 0:02:59]} 3. Bxf6 {[%clk 0:02:58]}  exf6 {[%clk 0:02:59]} 4. c3 {[%clk 0:02:58]}  d5 {[%clk 0:02:59]} 5. Nd2 {[%clk 0:02:58]}  Bg7 {[%clk 0:02:59]} 6. h4 {[%clk 0:02:57]}  O-O {[%clk 0:02:55]} 7. h5 {[%clk 0:02:57]}  f5 {[%clk 0:02:55]} 8. e3 {[%clk 0:02:57]}  Nd7 {[%clk 0:02:53]} 9. Ngf3 {[%clk 0:02:54]}  Nf6 {[%clk 0:02:53]} 10. hxg6 {[%clk 0:02:49]}  fxg6 {[%clk 0:02:51]} 11. c4 {[%clk 0:02:48]}  c6 {[%clk 0:02:49]} 12. cxd5 {[%clk 0:02:49]}  cxd5 {[%clk 0:02:47]} 13. Qb3 {[%clk 0:02:48]}  b6 {[%clk 0:02:38]} 14. Rc1 {[%clk 0:02:40]}  Bb7 {[%clk 0:02:38]} 15. Ng5 {[%clk 0:02:40]}  Rc8 {[%clk 0:02:31]} 16. Rc3 {[%clk 0:02:34]}  Qd7 {[%clk 0:02:28]} 17. Ndf3 {[%clk 0:02:27]}  Ne4 {[%clk 0:02:25]} 18. Rxh7 {[%clk 0:02:15]}  Nxc3 {[%clk 0:02:05]} 19. bxc3 {[%clk 0:02:16]}  Qc6 {[%clk 0:01:13]} 20. Kd2 {[%clk 0:01:56]}  Rc7 {[%clk 0:01:12]} 21. Bb5 {[%clk 0:01:35]}  Qd6 {[%clk 0:01:04]} 22. Rxg7+ {[%clk 0:01:33]}  Kxg7 {[%clk 0:01:01]} 23. Ne5 {[%clk 0:01:33]}  a6 {[%clk 0:00:43]} 24. Bd3 {[%clk 0:01:30]}  b5 {[%clk 0:00:31]} 25. f4 {[%clk 0:01:28]}  Rh8 {[%clk 0:00:25]} 26. Nef7 {[%clk 0:01:26]}  Qe7 {[%clk 0:00:21]} 27. Nxh8 {[%clk 0:01:25]}  Kxh8 {[%clk 0:00:22]} 28. Qb1 {[%clk 0:01:19]}  Kg7 {[%clk 0:00:14]} 29. Qh1 {[%clk 0:01:14]}  Kf6 {[%clk 0:00:15]} 30. Qh8+ {[%clk 0:01:13]}  Qg7 {[%clk 0:00:14]} 31. Qd8+ {[%clk 0:01:11]}  Qe7 {[%clk 0:00:13]} 32. Qg8 {[%clk 0:01:04]}  Bc8 {[%clk 0:00:06]} 33. g4 {[%clk 0:00:59]}  Be6 {[%clk 0:00:06]} 34. Nh7+ {[%clk 0:00:52]}  Qxh7 {[%clk 0:00:05]} 35. g5+ {[%clk 0:00:53]}  Ke7 {[%clk 0:00:03]} 36. Qxh7+ {[%clk 0:00:53]}  Kd6 {[%clk 0:00:01]} 37. Qxg6 {[%clk 0:00:53]} 1-0


[Site "https://www.chess.com"]

[Event "Titled Tuesday Blitz October 31 Late 2023"]
[White "maciejbrzeski128"]
[Black "Wisniowski, Natalie"]
[BlackFideId "30929261"]
[WhiteElo "2429"]
[BlackElo "2174"]
[Result "1-0"]
[Round "2"]
[TimeControl "180+1"]
[Date "2023.10.31"]
[WhiteClock "0:02:34"]
[BlackClock "0:00:47"]
[Board "160"]

1. e4 {[%clk 0:03:00]}  c5 {[%clk 0:02:59]} 2. Nc3 {[%clk 0:02:59]}  d6 {[%clk 0:02:58]} 3. f4 {[%clk 0:02:55]}  Nc6 {[%clk 0:02:55]} 4. Nf3 {[%clk 0:02:55]}  Bg4 {[%clk 0:02:32]} 5. Bc4 {[%clk 0:02:53]}  e6 {[%clk 0:02:17]} 6. h3 {[%clk 0:02:52]}  Bxf3 {[%clk 0:02:12]} 7. Qxf3 {[%clk 0:02:53]}  Nd4 {[%clk 0:01:59]} 8. Bb5+ {[%clk 0:02:53]}  Nxb5 {[%clk 0:01:49]} 9. Nxb5 {[%clk 0:02:54]}  Qb6 {[%clk 0:01:47]} 10. Nc3 {[%clk 0:02:50]}  Nf6 {[%clk 0:01:42]} 11. O-O {[%clk 0:02:49]}  g6 {[%clk 0:01:39]} 12. f5 {[%clk 0:02:48]}  exf5 {[%clk 0:01:36]} 13. exf5 {[%clk 0:02:47]}  Be7 {[%clk 0:01:21]} 14. d3 {[%clk 0:02:42]}  O-O {[%clk 0:01:19]} 15. Bh6 {[%clk 0:02:41]}  Rfe8 {[%clk 0:01:18]} 16. fxg6 {[%clk 0:02:39]}  fxg6 {[%clk 0:01:17]} 17. Nd5 {[%clk 0:02:40]}  Qxb2 {[%clk 0:01:04]} 18. Nxe7+ {[%clk 0:02:34]}  Rxe7 {[%clk 0:00:59]} 19. Qxf6 {[%clk 0:02:34]}  Qxf6 {[%clk 0:00:54]} 20. Rxf6 {[%clk 0:02:35]}  d5 {[%clk 0:00:47]} 21. Raf1 {[%clk 0:02:34]} 1-0


[Site "https://www.chess.com"]

[Event "Titled Tuesday Blitz October 31 Late 2023"]
[White "Michalski, Olaf"]
[Black "Vasudeva, Tanuj"]
[WhiteFideId "1106740"]
[BlackFideId "2035863"]
[WhiteElo "2082"]
[BlackElo "2418"]
[Result "1-0"]
[Round "2"]
[TimeControl "180+1"]
[Date "2023.10.31"]
[WhiteClock "0:00:18"]
[BlackClock "0:00:58"]
[Board "165"]

1. d4 {[%clk 0:03:00]}  f5 {[%clk 0:02:54]} 2. g3 {[%clk 0:03:00]}  Nf6 {[%clk 0:02:54]} 3. Bg2 {[%clk 0:03:01]}  g6 {[%clk 0:02:54]} 4. c3 {[%clk 0:03:01]}  Bg7 {[%clk 0:02:55]} 5. Qb3 {[%clk 0:03:01]}  c6 {[%clk 0:02:51]} 6. Nd2 {[%clk 0:02:59]}  Qc7 {[%clk 0:02:50]} 7. Nc4 {[%clk 0:02:53]}  d6 {[%clk 0:02:44]} 8. Nf3 {[%clk 0:02:44]}  Be6 {[%clk 0:02:43]} 9. a4 {[%clk 0:02:32]}  O-O {[%clk 0:02:33]} 10. Ng5 {[%clk 0:02:30]}  Bxc4 {[%clk 0:02:23]} 11. Qxc4+ {[%clk 0:02:27]}  d5 {[%clk 0:02:23]} 12. Qb3 {[%clk 0:02:15]}  Qd7 {[%clk 0:02:23]} 13. O-O {[%clk 0:02:09]}  Na6 {[%clk 0:02:23]} 14. Bf4 {[%clk 0:02:00]}  Rad8 {[%clk 0:02:19]} 15. Be5 {[%clk 0:01:48]}  c5 {[%clk 0:02:14]} 16. Qb5 {[%clk 0:01:40]}  cxd4 {[%clk 0:02:05]} 17. Qxd7 {[%clk 0:01:23]}  Rxd7 {[%clk 0:02:02]} 18. cxd4 {[%clk 0:01:18]}  Rc8 {[%clk 0:02:00]} 19. Rfc1 {[%clk 0:01:05]}  Rc4 {[%clk 0:01:38]} 20. Bxd5+ {[%clk 0:00:55]}  Nxd5 {[%clk 0:01:28]} 21. Rxc4 {[%clk 0:00:54]}  Nb6 {[%clk 0:01:28]} 22. Rc3 {[%clk 0:00:35]}  Nb4 {[%clk 0:01:25]} 23. a5 {[%clk 0:00:30]}  Bxe5 {[%clk 0:01:23]} 24. axb6 {[%clk 0:00:24]}  Bxd4 {[%clk 0:01:13]} 25. Rc8+ {[%clk 0:00:24]}  Kg7 {[%clk 0:01:12]} 26. Ne6+ {[%clk 0:00:21]}  Kf6 {[%clk 0:01:11]} 27. Nxd4 {[%clk 0:00:21]}  axb6 {[%clk 0:01:12]} 28. Nf3 {[%clk 0:00:20]}  Nc6 {[%clk 0:01:12]} 29. Rh8 {[%clk 0:00:19]}  Kg7 {[%clk 0:01:11]} 30. Raa8 {[%clk 0:00:20]}  h6 {[%clk 0:01:10]} 31. Rag8+ {[%clk 0:00:19]}  Kf7 {[%clk 0:01:10]} 32. Rf8+ {[%clk 0:00:19]}  Kg7 {[%clk 0:01:10]} 33. Rfg8+ {[%clk 0:00:19]}  Kf7 {[%clk 0:01:10]} 34. Ra8 {[%clk 0:00:20]}  Rd1+ {[%clk 0:01:10]} 35. Kg2 {[%clk 0:00:20]}  Kg7 {[%clk 0:01:10]} 36. h4 {[%clk 0:00:20]}  Nb4 {[%clk 0:01:10]} 37. Ne5 {[%clk 0:00:19]}  Nc2 {[%clk 0:01:10]} 38. Rag8+ {[%clk 0:00:19]}  Kf6 {[%clk 0:01:11]} 39. f4 {[%clk 0:00:19]}  Ne3+ {[%clk 0:00:58]} 40. Kf3 {[%clk 0:00:18]} 1-0


[Site "https://www.chess.com"]

[Event "Titled Tuesday Blitz October 31 Late 2023"]
[White "Oliveira, Tiago Batista"]
[Black "Zakarian, David"]
[WhiteFideId "2108291"]
[BlackFideId "13301276"]
[WhiteElo "2049"]
[BlackElo "2417"]
[Result "0-1"]
[Round "2"]
[TimeControl "180+1"]
[Date "2023.10.31"]
[WhiteClock "0:00:00"]
[BlackClock "0:00:40"]
[Board "166"]

1. d4 {[%clk 0:02:59]}  Nf6 {[%clk 0:02:59]} 2. c4 {[%clk 0:02:59]}  e6 {[%clk 0:03:00]} 3. Nf3 {[%clk 0:02:58]}  b6 {[%clk 0:03:00]} 4. g3 {[%clk 0:02:57]}  Bb7 {[%clk 0:03:00]} 5. Bg2 {[%clk 0:02:58]}  Be7 {[%clk 0:03:01]} 6. O-O {[%clk 0:02:58]}  O-O {[%clk 0:03:02]} 7. Nc3 {[%clk 0:02:57]}  Ne4 {[%clk 0:03:02]} 8. Qc2 {[%clk 0:02:53]}  Nxc3 {[%clk 0:03:00]} 9. bxc3 {[%clk 0:02:50]}  f5 {[%clk 0:03:01]} 10. Rd1 {[%clk 0:02:28]}  Be4 {[%clk 0:02:48]} 11. Qb3 {[%clk 0:02:27]}  d6 {[%clk 0:02:42]} 12. c5 {[%clk 0:02:06]}  Nd7 {[%clk 0:02:37]} 13. Qxe6+ {[%clk 0:02:05]}  Kh8 {[%clk 0:02:37]} 14. cxd6 {[%clk 0:01:57]}  Bxd6 {[%clk 0:02:32]} 15. Ng5 {[%clk 0:01:39]}  Bxg2 {[%clk 0:02:27]} 16. Kxg2 {[%clk 0:01:33]}  Qe8 {[%clk 0:02:18]} 17. Qc4 {[%clk 0:01:15]}  Nf6 {[%clk 0:02:12]} 18. Ne6 {[%clk 0:01:01]}  Rf7 {[%clk 0:02:12]} 19. Bf4 {[%clk 0:01:01]}  Re7 {[%clk 0:01:57]} 20. d5 {[%clk 0:00:58]}  Rc8 {[%clk 0:01:42]} 21. Bxd6 {[%clk 0:00:48]}  cxd6 {[%clk 0:01:41]} 22. Qd4 {[%clk 0:00:43]}  Nd7 {[%clk 0:01:02]} 23. Rd2 {[%clk 0:00:39]}  Nc5 {[%clk 0:01:01]} 24. Nf4 {[%clk 0:00:33]}  Ne4 {[%clk 0:01:00]} 25. Rd3 {[%clk 0:00:33]}  Re5 {[%clk 0:00:53]} 26. f3 {[%clk 0:00:33]}  Nf6 {[%clk 0:00:52]} 27. Ne6 {[%clk 0:00:32]}  Rxd5 {[%clk 0:00:44]} 28. Qe3 {[%clk 0:00:20]}  Re5 {[%clk 0:00:41]} 29. Qg5 {[%clk 0:00:03]}  Qxe6 {[%clk 0:00:41]} 30. e4 {[%clk 0:00:03]}  fxe4 {[%clk 0:00:40]} 31. f4 {[%clk 0:00:00]}  Rxg5 {[%clk 0:00:40]} 0-1


[Site "https://www.chess.com"]

[Event "Titled Tuesday Blitz October 31 Late 2023"]
[White "Kovalevsky, Stanislav"]
[Black "Sailer, Mike"]
[WhiteFideId "13508598"]
[BlackFideId "2012901"]
[WhiteElo "2417"]
[BlackElo "2048"]
[Result "1/2-1/2"]
[Round "2"]
[TimeControl "180+1"]
[Date "2023.10.31"]
[WhiteClock "0:00:17"]
[BlackClock "0:00:09"]
[Board "167"]

1. e4 {[%clk 0:03:00]}  g6 {[%clk 0:02:59]} 2. c4 {[%clk 0:02:59]}  c5 {[%clk 0:02:56]} 3. Nc3 {[%clk 0:03:00]}  Bg7 {[%clk 0:02:56]} 4. h4 {[%clk 0:03:00]}  h5 {[%clk 0:02:56]} 5. Nf3 {[%clk 0:02:59]}  d6 {[%clk 0:02:55]} 6. d3 {[%clk 0:02:59]}  Nc6 {[%clk 0:02:54]} 7. a3 {[%clk 0:02:59]}  Bg4 {[%clk 0:02:53]} 8. Be2 {[%clk 0:02:58]}  e6 {[%clk 0:02:42]} 9. Rb1 {[%clk 0:02:56]}  a5 {[%clk 0:02:41]} 10. Bg5 {[%clk 0:02:54]}  Qd7 {[%clk 0:02:36]} 11. Qd2 {[%clk 0:02:49]}  Nge7 {[%clk 0:02:35]} 12. Nb5 {[%clk 0:02:38]}  Bxf3 {[%clk 0:02:27]} 13. gxf3 {[%clk 0:02:32]}  Nd4 {[%clk 0:02:28]} 14. Nxd4 {[%clk 0:02:29]}  Bxd4 {[%clk 0:02:26]} 15. O-O {[%clk 0:02:16]}  Nc6 {[%clk 0:02:24]} 16. Bd1 {[%clk 0:02:10]}  a4 {[%clk 0:02:12]} 17. Kg2 {[%clk 0:02:03]}  Bg7 {[%clk 0:02:08]} 18. b4 {[%clk 0:01:44]}  axb3 {[%clk 0:02:07]} 19. Rxb3 {[%clk 0:01:43]}  Nd4 {[%clk 0:02:07]} 20. Rb6 {[%clk 0:01:43]}  Rxa3 {[%clk 0:01:56]} 21. Qb2 {[%clk 0:01:32]}  Ra7 {[%clk 0:01:52]} 22. Bc2 {[%clk 0:01:10]}  O-O {[%clk 0:01:45]} 23. Rb1 {[%clk 0:01:05]}  Nxf3 {[%clk 0:01:16]} 24. Bf6 {[%clk 0:01:06]}  Nd4 {[%clk 0:00:49]} 25. Bxg7 {[%clk 0:00:53]}  Kxg7 {[%clk 0:00:48]} 26. Bd1 {[%clk 0:00:52]}  Rb8 {[%clk 0:00:45]} 27. f4 {[%clk 0:00:37]}  Kg8 {[%clk 0:00:31]} 28. Ra1 {[%clk 0:00:34]}  Rxa1 {[%clk 0:00:29]} 29. Qxa1 {[%clk 0:00:35]}  Qe7 {[%clk 0:00:22]} 30. Qa7 {[%clk 0:00:26]}  Qc7 {[%clk 0:00:13]} 31. Bf3 {[%clk 0:00:20]}  Nxf3 {[%clk 0:00:12]} 32. Kxf3 {[%clk 0:00:20]}  Kg7 {[%clk 0:00:12]} 33. Kg3 {[%clk 0:00:19]}  Kg8 {[%clk 0:00:13]} 34. Kf3 {[%clk 0:00:19]}  Kg7 {[%clk 0:00:13]} 35. Qa5 {[%clk 0:00:19]}  Qe7 {[%clk 0:00:12]} 36. Qa7 {[%clk 0:00:17]}  Qc7 {[%clk 0:00:09]} 1/2-1/2


[Site "https://www.chess.com"]